[Event "4NCL 2021-22"]
[Site "England"]
[Date "2022.03.27"]
[Round "6.23"]
[White "Horton, Jamie A"]
[Black "Connell, Blair N"]
[Result "0-1"]
[ECO "A90"]
[WhiteElo "2275"]
[BlackElo "2230"]
[Annotator "NA"]
[PlyCount "65"]
[EventDate "2021.11.27"]
[EventType "team-tourn"]
[EventCountry "ENG"]
[SourceTitle "playchess.com"]
[Source "ChessBase"]
[SourceQuality "1"]
[TimeControl "40/6000+30:3000+30"]

1. d4 {[%emt 0:06:13]} e6 {[%emt 0:00:43]} 2. c4 {[%emt 0:01:28]} f5 {[%emt 0:04:41]} 3. g3 {[%emt 0:05:17]} Nf6 {[%emt 0:00:17]} 4. Bg2 {[%emt 0:00:24]} d5 {[%emt 0:01:08]} 5. Nf3 {[%emt 0:01:25]} c6 {[%emt 0:00:23]} 6. O-O {[%emt 0:01:31]} Bd6 {[%emt 0:00:26]} 7. b3 {[%emt 0:04:28]} Qe7 {[%emt 0:00:08]} 8. a4 {[%emt 0:14:15]} a5 {[%emt 0:15:44]} 9. Ba3 {[%emt 0:07:51]} O-O {[%emt 0:02:59]} 10. Ne5 {[%emt 0:10:30]} Nbd7 {[%emt 0:21:48]} 11. Nd3 {[%emt 0:11:33]} b6 {[%emt 0:06:13]} 12. Bxd6 {[%emt 0:10:47]} Qxd6 {[%emt 0:00:09]} 13. Nd2 {[%emt 0:16:06]} Bb7 {[%emt 0:26:28]} 14. Rc1 {[%emt 0:00:00]} Ne4 {[%emt 0:01:16]} 15. Nf3 {[%emt 0:00:00]} Rac8 $11 {[%emt 0:00:17]} 16. Nfe5 {[%emt 0:01:42]} Nxe5 {[%emt 0:10:00]} 17. Nxe5 {[%emt 0:01:17]} Rfd8 {[%emt 0:00:43]} 18. e3 {[%emt 0:05:49]} c5 {[%emt 0:00:28]} 19. Qh5 {[%emt 0:04:42]} g6 {[%emt 0:02:34]} 20. Qe2 {[%emt 0:02:16]} cxd4 {[%emt 0:00:47]} 21. exd4 {[%emt 0:00:34]} dxc4 {[%emt 0:00:17]} 22. Nxc4 {[%emt 0:01:37]} Qxd4 {[%emt 0:00:17]} 23. Bxe4 {[%emt 0:01:40]} Bxe4 {[%emt 0:02:09]} 24. Rfd1 {[%emt 0:00:19]} Qc5 {[%emt 0:00:10]} 25. Rxd8+ {[%emt 0:00:39]} Rxd8 {[%emt 0:00:04]} 26. Rd1 {[%emt 0:00:31]} Rxd1+ {[%emt 0:01:18]} 27. Qxd1 {[%emt 0:00:01]} Qd5 {[%emt 0:00:36]} 28. Qc1 {[%emt 0:00:55]} Qc5 {[%emt 0:06:12]} 29. Qd1 {[%emt 0:00:29]} Bc6 {[%emt 0:01:46]} 30. Qd8+ {[%emt 0:00:37]} Kg7 {[%emt 0:00:03]} 31. Qxb6 {[%emt 0:00:27]} Qd5 {[%emt 0:00:06]} 32. Qc7+ {[%emt 0:00:35]} Kh6 {[%emt 0:00:06]} 33. Qf4+ {[%emt 0:00:00]} 0-1

[Event "4NCL 2021-22"]
[Site "England"]
[Date "2022.03.27"]
[Round "6.24"]
[White "Boswell, Jacob Connor"]
[Black "Grigoryan, Meri"]
[Result "1/2-1/2"]
[ECO "D94"]
[WhiteElo "2053"]
[BlackElo "1989"]
[Annotator "NA"]
[PlyCount "145"]
[EventDate "2021.11.27"]
[EventType "team-tourn"]
[EventCountry "ENG"]
[SourceTitle "playchess.com"]
[Source "ChessBase"]
[SourceQuality "1"]
[TimeControl "40/6000+30:3000+30"]

1. Nf3 {[%emt 0:00:04]} Nf6 {[%emt 0:00:05]} 2. c4 {[%emt 0:00:12]} c6 {[%emt 0:00:29]} 3. e3 {[%emt 0:00:23]} d5 {[%emt 0:00:14]} 4. Nc3 {[%emt 0:00:26]} e6 {[%emt 0:01:11]} 5. b3 {[%emt 0:00:39]} g6 {[%emt 0:00:42]} 6. Be2 {[%emt 0:02:19]} Bg7 {[%emt 0:00:21]} 7. d4 {[%emt 0:08:31]} O-O {[%emt 0:07:40]} 8. O-O {[%emt 0:01:26]} Re8 {[%emt 0:00:43]} 9. Ne5 {[%emt 0:08:58]} Ne4 {[%emt 0:02:40]} 10. Nxe4 {[%emt 0:11:17]} dxe4 {[%emt 0:00:45]} 11. f4 {[%emt 0:00:56]} c5 {[%emt 0:08:33]} 12. Bb2 {[%emt 0:04:16]} f6 {[%emt 0:04:37]} 13. Ng4 {[%emt 0:00:13]} h5 {[%emt 0:00:03]} 14. Nf2 {[%emt 0:00:13]} f5 {[%emt 0:00:01]} 15. Qd2 {[%emt 0:17:06]} cxd4 {[%emt 0:03:28]} 16. exd4 {[%emt 0:04:20]} e5 {[%emt 0:04:13]} 17. fxe5 {[%emt 0:08:35]} Rxe5 {[%emt 0:02:01]} 18. Qc2 {[%emt 0:12:21]} Re8 {[%emt 0:03:30]} 19. Rad1 {[%emt 0:02:00]} Nc6 {[%emt 0:01:27]} 20. d5 {[%emt 0:02:05]} Bxb2 {[%emt 0:10:07]} 21. Qxb2 {[%emt 0:00:06]} Ne5 {[%emt 0:00:14]} 22. Nh3 {[%emt 0:06:58]} Qb6+ {[%emt 0:05:45]} 23. Kh1 {[%emt 0:00:00]} Bd7 {[%emt 0:10:10]} 24. Nf4 {[%emt 0:00:00]} Kh7 {[%emt 0:06:22]} 25. Qc3 {[%emt 0:03:15]} Rac8 {[%emt 0:05:07]} 26. b4 {[%emt 0:02:48]} Nxc4 {[%emt 0:17:31]} 27. Bxc4 {[%emt 0:00:16]} Bb5 {[%emt 0:10:36]} 28. Bxb5 {[%emt 0:00:09]} Rxc3 {[%emt 0:02:41]} 29. Bxe8 {[%emt 0:00:11]} g5 {[%emt 0:00:30]} 30. Ne6 {[%emt 0:00:46]} Rd3 {[%emt 0:01:59]} 31. Rxd3 {[%emt 0:13:59]} exd3 {[%emt 0:00:01]} 32. Ba4 {[%emt 0:01:06]} Qxb4 {[%emt 0:00:32]} 33. Bb3 {[%emt 0:00:01]} Kg6 {[%emt 0:00:45]} 34. Rd1 {[%emt 0:00:58]} Kf6 {[%emt 0:00:59]} 35. Kg1 {[%emt 0:00:54]} a5 {[%emt 0:00:21]} 36. Rf1 {[%emt 0:00:09]} a4 {[%emt 0:00:35]} 37. Bd1 {[%emt 0:00:11]} Qb6+ {[%emt 0:00:46]} 38. Kh1 {[%emt 0:00:01]} Qb2 {[%emt 0:00:47]} 39. Nc5 {[%emt 0:01:03]} Qd4 {[%emt 0:00:35]} 40. Nxa4 {[%emt 0:00:41]} b5 {[%emt 0:00:05]} 41. Nb6 {[%emt 0:15:30]} Qxb6 {[%emt 0:01:35]} 42. Bxh5 {[%emt 0:00:30]} Ke5 {[%emt 0:03:14]} 43. Bd1 {[%emt 0:04:44]} Qe3 {[%emt 0:02:28]} 44. h3 {[%emt 0:04:02]} Kxd5 {[%emt 0:03:36]} 45. Rxf5+ {[%emt 0:01:15]} Ke4 {[%emt 0:00:16]} 46. Rf1 {[%emt 0:01:27]} d2 {[%emt 0:05:58]} 47. Kh2 {[%emt 0:06:42]} Qe1 {[%emt 0:03:34]} 48. Bc2+ {[%emt 0:01:21]} Kd4 {[%emt 0:01:03]} 49. Rf5 {[%emt 0:01:52]} Qc1 {[%emt 0:08:07]} 50. Bb3 {[%emt 0:00:24]} Qc7+ {[%emt 0:19:19]} 51. Kg1 {[%emt 0:04:40]} Qe7 {[%emt 0:02:43]} 52. Rxb5 {[%emt 0:02:26]} Qe3+ {[%emt 0:01:03]} 53. Kh2 {[%emt 0:02:24]} Qf4+ {[%emt 0:00:25]} 54. Kg1 {[%emt 0:00:13]} Ke3 {[%emt 0:00:38]} 55. Rd5 {[%emt 0:05:55]} Ke2 {[%emt 0:01:26]} 56. Rd7 {[%emt 0:00:28]} Qf2+ {[%emt 0:00:23]} 57. Kh2 {[%emt 0:01:11]} Qf4+ {[%emt 0:01:36]} 58. Kg1 {[%emt 0:00:12]} Qe3+ {[%emt 0:01:08]} 59. Kh1 {[%emt 0:01:19]} Ke1 {[%emt 0:00:10]} 60. Kh2 {[%emt 0:01:08]} Qe8 {[%emt 0:01:02]} 61. Rd5 {[%emt 0:01:19]} Qe7 {[%emt 0:01:03]} 62. Kh1 {[%emt 0:00:53]} Qe3 {[%emt 0:00:48]} 63. Rd7 {[%emt 0:00:55]} Qe8 {[%emt 0:00:33]} 64. Rd5 {[%emt 0:00:18]} g4 {[%emt 0:00:36]} 65. hxg4 {[%emt 0:00:22]} Qh8+ {[%emt 0:00:29]} 66. Kg1 {[%emt 0:00:29]} Qe8 {[%emt 0:00:17]} 67. Kh1 {[%emt 0:00:54]} Qe3 {[%emt 0:00:25]} 68. Kh2 {[%emt 0:00:56]} Qf4+ {[%emt 0:00:27]} 69. Kh3 {[%emt 0:00:21]} Qe3+ {[%emt 0:00:50]} 70. Kh2 {[%emt 0:00:26]} Qf4+ {[%emt 0:00:21]} 71. Kh3 {[%emt 0:00:50]} Qe3+ {[%emt 0:00:09]} 72. Kh4 {[%emt 0:00:39]} Kf2 {[%emt 0:00:25]} 73. Kh5 {[%emt 0:00:29]} 1/2-1/2

[Event "4NCL 2021-22"]
[Site "England"]
[Date "2022.03.27"]
[Round "6.27"]
[White "Batchelor, Peter J"]
[Black "Adair, James R"]
[Result "1/2-1/2"]
[ECO "D12"]
[WhiteElo "2366"]
[BlackElo "2444"]
[Annotator "NA"]
[PlyCount "88"]
[EventDate "2021.11.27"]
[EventType "team-tourn"]
[EventCountry "ENG"]
[SourceTitle "playchess.com"]
[Source "ChessBase"]
[SourceQuality "1"]
[TimeControl "40/6000+30:3000+30"]

1. d4 {[%emt 0:00:03]} d5 {[%emt 0:09:27]} 2. c4 {[%emt 0:00:14]} c6 {[%emt 0:00:10]} 3. Nf3 {[%emt 0:01:33]} Nf6 {[%emt 0:00:10]} 4. e3 {[%emt 0:02:00]} Bf5 {[%emt 0:00:43]} 5. Nc3 {[%emt 0:03:18]} e6 {[%emt 0:00:15]} 6. Qb3 {[%emt 0:09:25]} Qc7 {[%emt 0:04:37]} 7. Nh4 {[%emt 0:04:28]} Be4 {[%emt 0:05:17]} 8. f3 {[%emt 0:07:13]} Bg6 {[%emt 0:00:07]} 9. Nxg6 {[%emt 0:13:55]} hxg6 {[%emt 0:00:07]} 10. Bd2 {[%emt 0:04:18] The main line 10.Bd2 scores better than 10.g3.} a6 {[%emt 0:18:42]} 11. g3 {[%emt 0:10:05]} Bd6 {[%emt 0:08:28]} (11... dxc4 $1 $11 12. Qxc4 (12. Bxc4 c5 $11) 12... c5) 12. f4 {[%emt 0:05:52]} Nbd7 {[%emt 0:09:44]} 13. Bg2 {[%emt 0:06:20]} Rc8 {[%emt 0:09:41] [#]} (13... Bf8 $11) 14. e4 $146 {[%emt 0:08:32]} ({Predecessor:} 14. c5 Be7 15. Qc2 Nh5 16. g4 Bh4+ 17. Ke2 Nhf6 18. Bf3 g5 19. Rag1 b6 20. b4 {1-0 (50) Perunovic,M (2419)-Ganaus,H (2245) Senta 2008}) 14... dxe4 {[%emt 0:00:41]} 15. Nxe4 {[%emt 0:00:42]} Nxe4 {[%emt 0:00:12]} 16. Bxe4 {[%emt 0:00:04]} O-O {[%emt 0:04:09]} 17. O-O {[%emt 0:02:27]} Be7 {[%emt 0:00:13]} 18. Rad1 {[%emt 0:02:14]} Rfd8 {[%emt 0:02:23]} 19. Be3 {[%emt 0:08:20]} b5 $11 {[%emt 0:05:47]} 20. Bf2 {[%emt 0:07:47]} Nb6 {[%emt 0:03:54]} 21. cxb5 {[%emt 0:01:17]} cxb5 {[%emt 0:01:48]} 22. h4 {[%emt 0:07:44]} Bf6 {[%emt 0:05:34]} 23. Qf3 {[%emt 0:01:11]} Rd7 {[%emt 0:03:02]} 24. h5 {[%emt 0:01:34]} gxh5 {[%emt 0:00:07]} 25. f5 {[%emt 0:00:41]} e5 {[%emt 0:02:58]} 26. dxe5 {[%emt 0:00:36]} Bxe5 {[%emt 0:00:46]} 27. Kg2 {[%emt 0:01:27]} Rxd1 {[%emt 0:04:10]} 28. Rxd1 {[%emt 0:00:01]} Nd7 {[%emt 0:00:35]} 29. Qxh5 {[%emt 0:01:05]} Nf6 {[%emt 0:00:07]} 30. Qh4 {[%emt 0:00:28]} Nxe4 {[%emt 0:07:11]} 31. Rh1 {[%emt 0:00:14]} g5 {[%emt 0:00:40]} 32. Qxe4 {[%emt 0:00:31]} Bxb2 {[%emt 0:02:11]} 33. Be3 {[%emt 0:00:48]} Qc2+ {[%emt 0:00:49]} 34. Qxc2 {[%emt 0:00:02]} Rxc2+ {[%emt 0:00:05]} 35. Kf3 {[%emt 0:00:30]} Bf6 {[%emt 0:00:32]} 36. Kg4 {[%emt 0:00:48]} Rxa2 {[%emt 0:01:24]} 37. Bxg5 {[%emt 0:00:10]} Ra4+ {[%emt 0:00:21]} 38. Kh5 {[%emt 0:00:06]} Bxg5 {[%emt 0:00:53]} 39. Kxg5 {[%emt 0:00:02]} b4 {[%emt 0:01:11]} 40. Rh4 {[%emt 0:00:52]} a5 {[%emt 0:00:41]} 41. Kf6 {[%emt 0:09:13]} Ra3 {[%emt 0:14:13]} 42. Rg4+ {[%emt 0:04:13]} Kf8 {[%emt 0:00:06]} 43. Rg7 {[%emt 0:00:30]} Ke8 {[%emt 0:00:43]} 44. Rxf7 {[%emt 0:01:33]} Rxg3 {[%emt 0:01:01]} 1/2-1/2

[Event "4NCL 2021-22"]
[Site "England"]
[Date "2022.03.27"]
[Round "6.28"]
[White "Han, Yichen"]
[Black "Roberson, Peter T"]
[Result "0-1"]
[ECO "B56"]
[WhiteElo "2347"]
[BlackElo "2425"]
[Annotator "NA"]
[PlyCount "84"]
[EventDate "2021.11.27"]
[EventType "team-tourn"]
[EventCountry "ENG"]
[SourceTitle "playchess.com"]
[Source "ChessBase"]
[SourceQuality "1"]
[TimeControl "40/6000+30:3000+30"]

1. e4 {[%emt 0:00:03]} c5 {[%emt 0:00:03]} 2. Nf3 {[%emt 0:00:05]} d6 {[%emt 0:00:04]} 3. d4 {[%emt 0:00:08]} cxd4 {[%emt 0:00:03]} 4. Nxd4 {[%emt 0:00:06]} Nf6 {[%emt 0:00:04]} 5. Nc3 {[%emt 0:00:08]} Nc6 {[%emt 0:00:04]} 6. Be3 {[%emt 0:03:26]} Ng4 {[%emt 0:01:40]} 7. Bb5 {[%emt 0:12:06]} Nxe3 {[%emt 0:02:18]} 8. Nxc6 {[%emt 0:04:36]} Nxd1 {[%emt 0:01:00]} 9. Ne5+ {[%emt 0:06:08]} Bd7 {[%emt 0:02:32]} 10. Nxd7 {[%emt 0:08:52]} e6 {[%emt 0:11:31]} 11. Ne5+ {[%emt 0:01:57]} Ke7 {[%emt 0:00:15]} 12. Rxd1 {[%emt 0:00:05]} Qc7 {[%emt 0:12:04]} 13. Nf3 {[%emt 0:10:43]} a6 {[%emt 0:01:02]} 14. Be2 {[%emt 0:01:21]} g6 {[%emt 0:01:27]} 15. O-O {[%emt 0:04:12]} Bg7 {[%emt 0:00:07]} 16. Rd3 {[%emt 0:00:06]} b5 {[%emt 0:04:37]} 17. a3 {[%emt 0:02:06]} Rac8 {[%emt 0:02:16]} 18. Rfd1 {[%emt 0:09:34]} Rhd8 {[%emt 0:01:29]} 19. Ne1 {[%emt 0:02:13]} Qb7 {[%emt 0:01:58]} 20. Re3 {[%emt 0:01:49]} Bxc3 {[%emt 0:03:45]} 21. bxc3 {[%emt 0:00:14]} Qb6 {[%emt 0:01:15]} 22. Nf3 {[%emt 0:12:48]} Qa5 {[%emt 0:02:42]} 23. Nd4 {[%emt 0:01:24]} Rxc3 {[%emt 0:07:41]} 24. Nb3 {[%emt 0:05:52]} Qc7 {[%emt 0:01:38]} 25. Bd3 {[%emt 0:00:11]} Qb6 {[%emt 0:03:04]} 26. Ra1 {[%emt 0:00:57]} Rdc8 {[%emt 0:06:26]} 27. g4 {[%emt 0:02:05]} h5 {[%emt 0:04:58]} 28. g5 $19 {[%emt 0:00:31]} R8c4 {[%emt 0:06:22]} 29. Bxc4 {[%emt 0:10:32]} Rxe3 {[%emt 0:00:45]} 30. Bd3 {[%emt 0:00:14]} Rf3 {[%emt 0:00:28]} 31. Rf1 {[%emt 0:00:08]} Rf4 {[%emt 0:02:12]} 32. h3 {[%emt 0:03:39]} Kf8 {[%emt 0:03:06]} 33. Kg2 {[%emt 0:00:33]} Qd8 {[%emt 0:00:51]} 34. h4 {[%emt 0:00:56]} Rxh4 {[%emt 0:00:33]} 35. f4 {[%emt 0:00:05]} e5 {[%emt 0:00:39]} 36. Nd2 {[%emt 0:01:11]} Rxf4 {[%emt 0:02:07]} 37. Nf3 {[%emt 0:00:25]} Qc8 {[%emt 0:00:52]} 38. Kf2 {[%emt 0:00:14]} d5 {[%emt 0:01:38]} 39. Ke3 {[%emt 0:04:14]} Qc5+ {[%emt 0:01:22]} 40. Kd2 {[%emt 0:00:17]} dxe4 {[%emt 0:00:26]} 41. Nxe5 {[%emt 0:50:28]} Qxe5 {[%emt 0:50:17]} 42. Be2 {[%emt 0:03:21]} Qd4+ {[%emt 0:00:47]} 0-1

[Event "4NCL 2021-22"]
[Site "England"]
[Date "2022.03.27"]
[Round "6.29"]
[White "Makkar, Rajat"]
[Black "Wells, Peter K"]
[Result "1-0"]
[ECO "A37"]
[WhiteElo "2252"]
[BlackElo "2379"]
[Annotator "ChessBase"]
[PlyCount "55"]
[EventDate "2021.11.27"]
[EventType "team-tourn"]
[EventCountry "ENG"]
[SourceTitle "playchess.com"]
[Source "ChessBase"]
[SourceQuality "1"]
[TimeControl "40/6000+30:3000+30"]

1. Nf3 {[%emt 0:00:07]} c5 {[%emt 0:04:01]} 2. c4 {[%emt 0:00:40]} Nc6 {[%emt 0:02:25]} 3. Nc3 {[%emt 0:00:54]} g6 {[%emt 0:02:30]} 4. g3 {[%emt 0:02:08]} Bg7 {[%emt 0:00:06]} 5. Bg2 {[%emt 0:00:43]} e6 {[%emt 0:02:13]} 6. h4 {[%emt 0:09:08]} h6 {[%emt 0:03:46]} 7. O-O {[%emt 0:10:15]} Nge7 {[%emt 0:01:45]} 8. d3 {[%emt 0:01:33]} d5 {[%emt 0:07:18]} 9. e4 {[%emt 0:05:13]} dxc4 {[%emt 0:20:26]} 10. dxc4 {[%emt 0:01:15]} Qxd1 {[%emt 0:09:15]} 11. Rxd1 {[%emt 0:00:28]} Bxc3 {[%emt 0:02:36]} 12. bxc3 {[%emt 0:01:28]} e5 {[%emt 0:00:05]} 13. a4 {[%emt 0:05:32]} Be6 {[%emt 0:04:37]} 14. a5 {[%emt 0:08:46]} Bxc4 {[%emt 0:07:56]} 15. Be3 {[%emt 0:01:49]} f6 {[%emt 0:23:15]} 16. Bxc5 {[%emt 0:06:38]} Rh7 {[%emt 0:04:42]} 17. Rd6 {[%emt 0:03:19]} Rf7 {[%emt 0:00:55]} 18. Nd2 {[%emt 0:01:07]} Ba6 {[%emt 0:01:12]} 19. Bh3 {[%emt 0:06:28]} Nc8 {[%emt 0:02:07]} 20. Re6+ {[%emt 0:00:20]} N8e7 {[%emt 0:00:05]} 21. h5 {[%emt 0:01:59]} g5 {[%emt 0:02:42]} 22. Nf1 {[%emt 0:04:42]} Be2 {[%emt 0:06:57]} 23. Ne3 {[%emt 0:04:25]} Bxh5 {[%emt 0:00:28]} 24. Nd5 {[%emt 0:01:22]} g4 {[%emt 0:00:30]} 25. Bf1 {[%emt 0:03:21]} Kd7 {[%emt 0:00:35]} 26. Bc4 {[%emt 0:02:14]} Nxd5 {[%emt 0:00:19]} 27. Bxd5 {[%emt 0:00:59]} Kc7 {[%emt 0:00:34]} 28. a6 {[%emt 0:02:59]} 1-0

[Event "4NCL 2021-22"]
[Site "England"]
[Date "2022.03.27"]
[Round "6.30"]
[White "Camacho Collados, Jose"]
[Black "Holland, James P"]
[Result "0-1"]
[ECO "A36"]
[WhiteElo "2400"]
[BlackElo "2224"]
[Annotator "NA"]
[PlyCount "132"]
[EventDate "2021.11.27"]
[EventType "team-tourn"]
[EventCountry "ENG"]
[SourceTitle "playchess.com"]
[Source "ChessBase"]
[SourceQuality "1"]
[TimeControl "40/6000+30:3000+30"]

1. Nf3 {[%emt 0:00:02]} c5 {[%emt 0:03:16]} 2. g3 {[%emt 0:00:13]} Nc6 {[%emt 0:00:17]} 3. Bg2 {[%emt 0:00:13]} g6 {[%emt 0:01:01]} 4. c4 {[%emt 0:00:28]} Bg7 {[%emt 0:00:02]} 5. Nc3 {[%emt 0:00:04]} d6 {[%emt 0:00:09]} 6. O-O {[%emt 0:01:05]} e6 {[%emt 0:00:04]} 7. e3 {[%emt 0:03:22]} Nge7 {[%emt 0:03:40]} 8. d4 {[%emt 0:00:08]} O-O {[%emt 0:00:36]} 9. b3 {[%emt 0:04:14]} cxd4 {[%emt 0:04:33]} 10. Nxd4 {[%emt 0:02:51]} Nxd4 {[%emt 0:00:32]} 11. exd4 {[%emt 0:00:06]} Nf5 {[%emt 0:00:19]} 12. Ne2 {[%emt 0:05:16]} Rb8 {[%emt 0:07:05]} 13. a4 {[%emt 0:04:11]} a6 {[%emt 0:02:35]} 14. Ra2 {[%emt 0:06:07]} b5 {[%emt 0:16:10]} 15. cxb5 {[%emt 0:00:07]} axb5 {[%emt 0:00:48]} 16. a5 {[%emt 0:00:03]} b4 $1 {[%emt 0:00:18]} 17. d5 {[%emt 0:47:29]} e5 $1 {[%emt 0:04:48]} ({Much weaker is} 17... Ba6 18. dxe6 fxe6 19. Nf4 $11) 18. Bd2 {[%emt 0:01:01]} Ba6 {[%emt 0:13:31]} 19. Re1 {[%emt 0:00:35]} Qc7 {[%emt 0:09:00]} 20. Qc1 {[%emt 0:05:11]} Qa7 {[%emt 0:09:05]} 21. g4 {[%emt 0:01:11]} Nh4 {[%emt 0:00:54]} 22. Bh1 $17 {[%emt 0:09:40]} Rbc8 {[%emt 0:13:18]} 23. Qd1 {[%emt 0:04:53]} f5 {[%emt 0:00:40]} 24. Bxb4 {[%emt 0:03:28]} fxg4 {[%emt 0:00:43]} 25. Ng3 {[%emt 0:00:19]} Qd7 {[%emt 0:02:55]} 26. Re4 {[%emt 0:06:39]} Nf3+ {[%emt 0:05:11]} 27. Bxf3 {[%emt 0:00:26]} gxf3 {[%emt 0:00:04]} 28. Kh1 {[%emt 0:00:48]} Qh3 {[%emt 0:00:42]} 29. Qg1 {[%emt 0:00:03]} Rf4 {[%emt 0:00:26]} 30. Ra1 {[%emt 0:00:44]} Bd3 {[%emt 0:01:19]} 31. Re3 {[%emt 0:03:37]} Rxb4 {[%emt 0:00:33]} 32. Rxd3 {[%emt 0:00:31]} e4 {[%emt 0:00:06]} 33. Rdd1 {[%emt 0:00:09]} Bxa1 {[%emt 0:00:23]} 34. Rxa1 {[%emt 0:00:01]} Ra8 {[%emt 0:02:44]} 35. Nf1 {[%emt 0:02:03]} Rxb3 {[%emt 0:03:26]} 36. Qg5 {[%emt 0:00:31]} Qg2+ {[%emt 0:04:54]} 37. Qxg2 {[%emt 0:00:01]} fxg2+ {[%emt 0:00:05]} 38. Kxg2 {[%emt 0:00:03]} Rb5 {[%emt 0:00:25]} 39. Ne3 {[%emt 0:00:38]} Rbxa5 {[%emt 0:00:12]} 40. Rb1 {[%emt 0:01:01]} Rf8 {[%emt 0:01:39]} 41. Rb2 {[%emt 0:01:32]} Rf4 {[%emt 0:04:57]} 42. h3 {[%emt 0:01:44]} h5 {[%emt 0:00:20]} 43. Kg3 {[%emt 0:00:58]} g5 {[%emt 0:00:24]} 44. Rd2 {[%emt 0:03:10]} Ra3 {[%emt 0:02:58]} 45. Kg2 {[%emt 0:00:34]} Rc3 {[%emt 0:02:41]} 46. Ra2 {[%emt 0:00:15]} Kf7 {[%emt 0:03:51]} 47. Ra7+ {[%emt 0:00:30]} Kf6 {[%emt 0:09:44]} 48. Rd7 {[%emt 0:02:15]} Ke5 {[%emt 0:00:20]} 49. Rg7 {[%emt 0:01:46]} Rxe3 {[%emt 0:11:15]} 50. fxe3 {[%emt 0:00:12]} Rf5 {[%emt 0:00:04]} 51. Ra7 {[%emt 0:00:40]} Kxd5 {[%emt 0:00:05]} 52. Ra5+ {[%emt 0:01:40]} Ke6 {[%emt 0:00:05]} 53. Ra8 {[%emt 0:02:00]} Rf3 {[%emt 0:01:24]} 54. Re8+ {[%emt 0:02:16]} Kd5 {[%emt 0:01:05]} 55. Rg8 {[%emt 0:00:06]} g4 {[%emt 0:01:31]} 56. h4 {[%emt 0:01:14]} Rxe3 {[%emt 0:00:31]} 57. Rg5+ {[%emt 0:00:24]} Kd4 {[%emt 0:00:05]} 58. Rxh5 {[%emt 0:00:06]} Rh3 {[%emt 0:00:56]} 59. Rh8 {[%emt 0:00:27]} d5 {[%emt 0:00:42]} 60. Ra8 {[%emt 0:02:30]} Rxh4 {[%emt 0:00:27]} 61. Kg3 {[%emt 0:00:08]} Rh7 {[%emt 0:00:30]} 62. Kxg4 {[%emt 0:00:19]} Rf7 {[%emt 0:00:04]} 63. Ra4+ {[%emt 0:00:16]} Ke5 {[%emt 0:00:06]} 64. Kg3 {[%emt 0:00:24]} e3 {[%emt 0:00:16]} 65. Ra8 {[%emt 0:00:09]} d4 {[%emt 0:00:09]} 66. Ra5+ {[%emt 0:00:38]} Ke4 {[%emt 0:00:05]} 0-1

[Event "4NCL 2021-22"]
[Site "England"]
[Date "2022.03.27"]
[Round "6.31"]
[White "Dong, Bao Nghia"]
[Black "Chow, Samuel"]
[Result "1/2-1/2"]
[ECO "A23"]
[WhiteElo "2332"]
[BlackElo "2400"]
[Annotator "NA"]
[PlyCount "104"]
[EventDate "2021.11.27"]
[EventType "team-tourn"]
[EventCountry "ENG"]
[SourceTitle "playchess.com"]
[Source "ChessBase"]
[SourceQuality "1"]
[TimeControl "40/6000+30:3000+30"]

1. c4 {[%emt 0:00:26]} Nf6 {[%emt 0:05:19]} 2. g3 {[%emt 0:00:39]} e5 {[%emt 0:07:55]} 3. Bg2 {[%emt 0:00:46]} c6 {[%emt 0:01:45]} 4. Nc3 {[%emt 0:07:50]} d5 {[%emt 0:04:02]} 5. d4 {[%emt 0:01:14]} e4 {[%emt 0:01:14]} 6. h4 {[%emt 0:01:05]} Bb4 {[%emt 0:02:36]} 7. Nh3 {[%emt 0:09:14]} h6 {[%emt 0:02:33]} 8. Qb3 {[%emt 0:02:07]} Bxc3+ {[%emt 0:00:24]} 9. bxc3 {[%emt 0:00:38]} O-O {[%emt 0:00:29]} 10. Nf4 {[%emt 0:01:16]} Re8 {[%emt 0:00:54]} 11. O-O {[%emt 0:02:55]} b6 {[%emt 0:08:22]} 12. a4 {[%emt 0:08:39]} Ba6 {[%emt 0:01:52]} 13. cxd5 {[%emt 0:00:22]} cxd5 {[%emt 0:00:09]} 14. f3 {[%emt 0:13:52]} Nc6 {[%emt 0:14:54]} 15. fxe4 {[%emt 0:03:40]} Bc4 {[%emt 0:00:48]} 16. Qc2 {[%emt 0:01:48]} Nxe4 {[%emt 0:00:25]} 17. Rf3 {[%emt 0:00:08]} (17. Nh5 $142) 17... Nf6 {[%emt 0:09:15]} 18. Nd3 {[%emt 0:03:37]} Qe7 {[%emt 0:06:13]} 19. Bf1 {[%emt 0:05:42]} Ba6 {[%emt 0:01:58]} 20. Ba3 $17 {[%emt 0:03:12]} Bxd3 {[%emt 0:02:47]} 21. Qxd3 {[%emt 0:02:21]} Qe4 {[%emt 0:02:23]} 22. Qd1 {[%emt 0:02:08]} Qg6 {[%emt 0:03:23]} 23. Bh3 {[%emt 0:05:27]} Ng4 {[%emt 0:04:02]} 24. Qd3 {[%emt 0:06:42]} Qxd3 {[%emt 0:01:11]} 25. exd3 {[%emt 0:00:39]} h5 {[%emt 0:00:29]} 26. Raf1 {[%emt 0:00:22]} f6 {[%emt 0:01:20]} 27. Bc1 {[%emt 0:00:38]} Re2 {[%emt 0:04:57]} 28. Rf4 {[%emt 0:06:36]} Rae8 {[%emt 0:03:02]} 29. Bg2 {[%emt 0:01:05]} Ne7 {[%emt 0:05:31]} 30. c4 {[%emt 0:06:15]} Ne3 {[%emt 0:05:04]} 31. Bxe3 {[%emt 0:00:48]} Rxe3 {[%emt 0:00:07]} 32. cxd5 {[%emt 0:00:06]} Rd8 {[%emt 0:00:50]} 33. Be4 {[%emt 0:08:56]} Rxg3+ {[%emt 0:01:18]} 34. Kh2 {[%emt 0:04:14]} Rg4 {[%emt 0:04:48]} 35. Rxg4 {[%emt 0:00:11]} hxg4 {[%emt 0:00:06]} 36. Rf4 {[%emt 0:00:03]} Nxd5 {[%emt 0:01:33]} 37. Rxg4 {[%emt 0:00:21]} Ne3 {[%emt 0:02:23]} 38. Rf4 {[%emt 0:00:20]} Nc2 {[%emt 0:01:12]} 39. d5 {[%emt 0:00:56]} Kf7 {[%emt 0:01:22]} 40. h5 {[%emt 0:01:09]} a5 {[%emt 0:00:49]} 41. Bg6+ {[%emt 0:50:44]} Kf8 {[%emt 0:13:41]} 42. Re4 {[%emt 0:00:00]} Nb4 {[%emt 0:01:28]} 43. d6 {[%emt 0:00:00]} Nxd3 {[%emt 0:00:21]} 44. Re7 {[%emt 0:00:00]} Ne5 {[%emt 0:04:33]} 45. Re6 {[%emt 0:00:00]} Nf7 {[%emt 0:06:56]} 46. d7 {[%emt 0:00:00]} Rxd7 {[%emt 0:00:10]} 47. Rxb6 {[%emt 0:00:00]} Ne5 {[%emt 0:03:43]} 48. Ra6 {[%emt 0:00:00]} Nxg6 {[%emt 0:08:04]} 49. hxg6 {[%emt 0:00:00]} Rd5 {[%emt 0:00:08]} 50. Ra8+ {[%emt 0:00:00]} Ke7 {[%emt 0:00:07]} 51. Ra7+ {[%emt 0:00:00]} Ke6 {[%emt 0:01:30]} 52. Rxg7 {[%emt 0:00:00]} Rg5 {[%emt 0:04:55]} 1/2-1/2